bitfinex/quotes_ETHUSD_20250823
["timestamp","ask_amount","ask_price","bid_price","bid_amount"]
[1755963171741,14.10655643,4747.9,4747.8,0.02]
[1755963171922,19.29855643,4747.9,4747.8,0.02]
[1755963172239,19.72735643,4747.9,4747.8,0.02]
[1755963172449,9.26207956,4747.9,4747.8,0.02]
[1755963173009,11.36827387,4747.9,4747.8,0.02]
[1755963174428,9.26207956,4747.9,4747.8,0.02]
[1755963174607,13.46827387,4747.9,4747.8,0.02]
[1755963174806,2.10641614,4747.4,4747.3,0.001]
[1755963175025,8.99111614,4747.4,4747.3,0.001]
[1755963175218,9.41991614,4747.4,4747.3,0.001]
[1755963175644,10.14457981,4747.4,4747.3,0.001]
[1755963176017,9.74956069,4747.4,4747.3,0.001]
[1755963176216,9.94707038,4747.4,4747.3,0.001]
[1755963176413,4.26765424,4747.4,4747.3,0.001]
[1755963176642,4.84965424,4747.4,4747.3,0.001]
[1755963176928,5.0040139,4747.4,4747.3,0.001]
[1755963177115,10.11043004,4747.4,4747.3,0.001]
[1755963177323,9.91292035,4747.4,4747.3,0.001]
[1755963177747,8.00410299,4747.4,4747.3,0.001]
[1755963178048,7.80650421,4747.4,4747.3,0.001]
[1755963178251,9.91292035,4747.4,4747.3,0.001]
[1755963178420,7.47685966,4747.4,4747.3,0.001]
[1755963178828,9.5832758,4747.4,4747.3,0.001]
[1755963180018,17.55224057,4747.4,4747.3,0.001]
[1755963180552,16.89024057,4747.4,4747.3,0.001]
[1755963181362,16.99584057,4747.4,4747.3,0.001]
[1755963181734,14.88942443,4747.4,4747.3,0.001]
[1755963181934,10.88062443,4747.4,4747.3,0.001]
[1755963182256,14.46262443,4747.4,4747.3,0.001]
[1755963182762,7.56892443,4747.4,4747.3,0.2963]
[1755963182921,10.99656477,4747.4,4747.3,0.7625]
[1755963183563,10.99656477,4747.4,4747.3,0.001]
[1755963183957,10.99656477,4747.4,4747.3,0.2963]
[1755963184264,10.99656477,4747.4,4747.3,0.001]
[1755963185039,10.99656477,4747.4,4747.3,0.2963]
[1755963185575,10.99656477,4747.4,4747.3,0.001]
[1755963185576,14.63146477,4747.4,4747.3,0.001]
[1755963185868,16.73788091,4747.4,4747.3,0.001]
[1755963190367,16.82232991,4747.4,4747.3,0.001]
[1755963191226,10.70511377,4747.4,4747.3,0.001]
[1755963191431,13.97541377,4747.4,4747.3,0.001]
[1755963191731,16.30908091,4747.4,4747.3,0.001]
[1755963191931,16.73788091,4747.4,4747.3,0.001]
[1755963192555,13.89096477,4747.4,4747.3,0.2963]
[1755963192759,10.30896477,4747.4,4747.3,0.2963]
[1755963192957,6.91066333,4747.4,4747.3,0.2963]
[1755963195165,6.91066333,4747.4,4747.3,0.001]
[1755963195764,7.01626333,4747.4,4747.3,0.001]
[1755963196267,7.01626333,4747.4,4747.3,0.2963]
[1755963197367,3.63216509,4747.4,4747.3,0.2963]
[1755963197580,7.21016509,4747.4,4747.3,0.2963]
[1755963198300,7.66394656,4747.4,4747.3,0.2963]
[1755963198434,7.66394656,4747.4,4747.3,0.001]
[1755963200175,7.33490766,4747.4,4747.3,0.2934]
[1755963202369,7.33490766,4747.4,4747.3,0.001]
[1755963204203,3.75690766,4747.4,4747.3,0.2934]
[1755963204390,0.75690766,4747.4,4747.3,0.7624]
[1755963204595,0.19752619,4747.4,4747.3,0.7624]
[1755963204772,3.575,4747.4,4747.3,1.2599493]
[1755963204967,3.575,4747.4,4747.3,0.7624]
[1755963205581,0.1056,4747.5,4747.4,2.10641614]
[1755963205838,0.32957485,4747.9,4747.8,2.10623867]
[1755963206017,0.002,4748.0,4747.9,2.10619431]
[1755963206182,0.002,4748.0,4747.9,2.85963761]
[1755963206376,0.002,4748.0,4747.9,3.43423761]
[1755963206775,0.002,4748.0,4747.9,4.09423761]
[1755963212824,0.002,4748.0,4747.9,3.43423761]
[1755963216038,0.002,4748.0,4747.9,4.09423761]
[1755963216724,0.002,4748.0,4747.9,10.56263761]
[1755963216927,0.002,4748.0,4747.9,10.66823761]
[1755963218126,0.002,4748.0,4747.9,7.09423761]
[1755963218360,0.002,4748.0,4747.9,10.66823761]
[1755963223164,0.002,4748.0,4747.9,9.53923761]
[1755963223347,0.002,4748.0,4747.9,6.53923761]
[1755963226157,0.318,4748.0,4747.9,5.78579431]
[1755963226699,0.7469,4748.0,4747.9,5.78579431]
[1755963226878,0.7469,4748.0,4747.9,2.10619431]
[1755963227259,0.7469,4748.0,4747.8,2.10623718]
[1755963227575,0.7469,4748.0,4747.3,0.001]
[1755963227576,0.4289,4747.9,4747.3,0.001]
[1755963227753,0.4289,4747.9,4747.4,0.1056]
[1755963227957,0.316,4747.5,4747.4,2.21201614]
[1755963228154,0.7449,4747.5,4747.4,0.1056]
[1755963228370,0.7449,4747.5,4747.4,2.10641614]
[1755963229790,0.316,4747.5,4747.4,2.10641614]
[1755963229991,0.002,4748.0,4747.9,2.10619431]
[1755963230179,0.1056,4747.9,4747.4,2.10641614]
[1755963230379,0.4367,4747.8,4747.3,0.1066]
[1755963230575,0.2981,4747.5,4747.4,2.10641342]
[1755963231003,0.7348,4747.5,4747.4,2.10641342]
[1755963231683,0.2981,4747.5,4747.4,2.10641342]
[1755963231882,0.7348,4747.5,4747.3,2.10741787]
[1755963232187,0.2981,4747.5,4747.4,2.10641614]
[1755963232785,0.7348,4747.5,4747.4,2.10641614]
[1755963233328,0.1056,4747.6,4747.5,2.10637177]
[1755963233490,0.1056,4747.9,4747.8,2.10623867]
[1755963233683,0.002,4748.0,4747.8,2.10623867]
[1755963233881,0.002,4748.0,4747.9,2.10619431]
[1755963234082,0.3001,4748.0,4747.9,2.10619431]
[1755963238709,0.002,4748.0,4747.9,2.10619431]
[1755963240300,0.002,4748.0,4747.9,2.40439431]
[1755963240500,0.002,4748.0,4747.9,2.86601968]
[1755963240899,0.002,4748.0,4747.9,2.40439431]
[1755963241105,0.002,4748.0,4747.9,2.10619431]
[1755963242016,0.3001,4748.0,4747.9,2.10619431]
[1755963243093,0.7368,4748.0,4747.9,2.10619431]
[1755963245930,0.3001,4748.0,4747.9,2.10619431]
[1755963246231,0.002,4748.0,4747.9,2.40439431]
[1755963249433,0.002,4748.0,4747.9,2.10619431]
[1755963250130,0.002,4748.0,4747.5,0.1066]
[1755963250131,0.3001,4748.0,4747.6,3.573]
[1755963250331,0.3001,4748.0,4747.9,2.10619431]
[1755963250510,0.7368,4748.0,4747.9,2.10619431]
[1755963250710,0.3001,4748.0,4747.9,2.10619431]
[1755963251611,0.3001,4748.0,4747.6,3.573]
[1755963251612,0.3001,4748.0,4747.6,5.67930756]
[1755963251945,0.3001,4748.0,4747.9,2.10619431]
[1755963252414,0.7368,4748.0,4747.9,2.10619431]
[1755963252916,0.7368,4748.0,4747.8,2.10623347]
[1755963253143,0.4367,4747.9,4747.8,2.10623347]
[1755963253447,0.7348,4747.9,4747.8,2.10623347]
[1755963254045,0.002,4748.0,4747.9,2.10619431]
[1755963254947,0.3001,4748.0,4747.9,2.10619431]
[1755963257928,0.7368,4748.0,4747.9,2.10619431]
[1755963258839,0.7368,4748.0,4747.7,2.1062438]
[1755963259041,0.3001,4748.0,4747.5,0.1066]
[1755963259241,0.461,4747.9,4747.5,0.001]
[1755963259440,0.4166,4747.6,4747.5,0.001]
[1755963260029,0.8776,4747.6,4747.5,0.001]
[1755963271585,0.1056,4747.6,4747.5,2.40317177]
[1755963271783,0.002,4748.0,4747.9,2.10619431]
[1755963271951,0.002,4748.0,4747.9,2.50759431]
[1755963272153,0.002,4748.0,4747.9,2.94039431]
[1755963272353,0.002,4748.0,4747.9,4.01289676]
[1755963275989,0.002,4748.0,4747.9,4.67289676]
[1755963276969,1e-08,4748.0,4747.9,7.67289676]
[1755963277172,0.002,4749.0,4748.8,0.66]
[1755963277374,0.002,4749.0,4748.9,7.08073475]
[1755963277894,0.002,4749.0,4748.9,6.85353475]
[1755963285096,0.002,4749.0,4748.9,6.42073475]
[1755963285311,0.002,4749.0,4748.9,6.85353475]
[1755963286314,0.002,4749.0,4748.9,6.42073475]
[1755963286813,0.002,4749.0,4748.9,2.55393475]
[1755963287016,0.774,4749.0,4748.9,6.12293475]
[1755963287306,0.313,4749.0,4748.9,6.12293475]
[1755963288291,0.774,4749.0,4748.9,2.55393475]
[1755963288494,0.774,4749.0,4748.9,6.12293475]
[1755963288699,0.774,4749.0,4748.9,2.2113508]
[1755963288978,0.774,4749.0,4748.9,5.7803508]
[1755963291387,0.313,4749.0,4748.9,2.2113508]
[1755963291710,0.7446,4749.0,4748.3,2.10601054]
[1755963291910,0.1056,4748.6,4748.2,3.568]
[1755963292262,0.3011,4748.3,4748.0,3.568]
[1755963292386,0.4316,4748.2,4747.9,0.1056]
[1755963292577,0.3011,4748.0,4747.9,0.1056]
[1755963292888,0.3011,4748.0,4747.8,0.02]
[1755963293092,0.4316,4747.9,4747.8,0.02]
[1755963293416,0.7327,4747.9,4747.8,0.02]
[1755963293585,0.7327,4747.9,4747.8,2.12623867]
[1755963294583,0.7327,4747.9,4747.8,0.02]
[1755963295375,0.8383,4747.9,4747.8,0.02]
[1755963300543,0.1056,4747.9,4747.8,0.02]
[1755963300756,0.1056,4747.9,4747.8,2.42903867]
[1755963301120,0.1056,4747.9,4747.8,2.12623867]
[1755963301320,0.4067,4747.9,4747.8,2.12623867]
[1755963302421,0.4067,4747.9,4747.8,0.02]
[1755963302626,0.8383,4747.9,4747.8,0.02]
[1755963304059,0.8383,4747.9,4747.8,2.12623867]
[1755963304260,0.8383,4747.9,4747.8,0.02]
[1755963309454,0.4067,4747.9,4747.8,0.02]
[1755963310560,0.8383,4747.9,4747.8,0.02]
[1755963310854,2.4583,4747.9,4747.8,0.02]
[1755963311236,9.0263,4747.9,4747.8,0.02]
[1755963313067,11.13249431,4747.9,4747.8,0.02]
[1755963313889,11.21693031,4747.9,4747.8,0.021]
[1755963314194,9.110736,4747.9,4747.8,0.021]
[1755963315053,11.21693031,4747.9,4747.8,0.021]
[1755963315266,9.770736,4747.9,4747.8,0.021]
[1755963315486,9.110736,4747.9,4747.8,0.021]
[1755963318560,9.56431558,4747.9,4747.8,0.021]
[1755963321494,9.76147105,4747.9,4747.8,0.021]
[1755963321857,9.32987105,4747.9,4747.8,0.021]
[1755963322063,0.56630871,4748.7,4747.8,0.7867]
[1755963322294,3.76415177,4748.6,4747.9,0.4731]
[1755963322492,3.45421635,4748.5,4747.9,0.4731]
[1755963322790,0.45421635,4748.4,4747.9,0.4731]
[1755963322994,3.45421635,4748.5,4748.3,0.2926]
[1755963323297,0.45421635,4748.4,4748.3,0.2926]
[1755963323506,0.45421635,4748.4,4747.9,0.4731]
[1755963323802,3.567,4748.3,4747.9,0.4731]
[1755963324097,3.567,4748.3,4748.2,0.2926]
[1755963325185,3.567,4748.3,4748.2,0.7657]
[1755963325559,3.567,4748.3,4748.2,0.2926]
[1755963332000,3.6726,4748.3,4748.2,0.2926]
[1755963334018,0.1056,4748.3,4748.2,1.05498744]
[1755963334214,0.1056,4748.3,4748.2,2.87176124]
[1755963336344,0.1076,4748.8,4748.7,2.10583949]
[1755963336488,0.002,4748.8,4748.7,3.2927138]
[1755963336817,0.002,4748.8,4748.7,3.3983138]
[1755963339307,0.002,4748.8,4748.7,6.9633138]
[1755963339508,0.002,4748.8,4748.7,7.6233138]
[1755963339703,0.002,4748.8,4748.7,10.6233138]
[1755963339903,1e-08,4748.8,4748.7,10.6233138]
[1755963342815,1e-08,4748.8,4748.7,2.9252138]
[1755963343215,1e-08,4748.8,4748.7,3.3983138]
[1755963344512,1e-08,4748.8,4748.7,4.0583138]
[1755963346231,1e-08,4748.8,4748.7,7.0583138]
[1755963348140,1e-08,4748.8,4748.7,9.4882138]
[1755963348322,1e-08,4748.8,4748.7,6.4882138]
[1755963349212,1e-08,4748.8,4748.7,6.1956138]
[1755963350559,1e-08,4748.8,4748.7,2.6326138]
[1755963350742,1e-08,4748.8,4748.7,6.1956138]
[1755963351349,0.31410001,4748.8,4748.7,2.10583949]
[1755963351543,0.75980001,4748.8,4748.7,5.66883949]
[1755963352064,0.31410001,4748.8,4748.7,5.66883949]
[1755963352851,0.75980001,4748.8,4747.4,1.619]
[1755963353049,0.75980001,4748.8,4747.7,2.10624584]
[1755963353236,0.75980001,4748.8,4747.6,3.563]
[1755963353237,0.4457,4748.7,4747.6,3.563]
[1755963353436,0.3141,4747.9,4747.8,2.12719674]
[1755963353660,0.3141,4747.9,4747.8,0.021]
[1755963353976,0.7598,4747.9,4747.8,0.021]
[1755963354152,0.7598,4747.9,4747.8,2.12723867]
[1755963354466,0.7598,4747.9,4747.8,0.021]
[1755963355239,1e-08,4748.8,4747.8,0.8424]
[1755963355438,0.4457,4748.7,4748.1,2.10607766]
[1755963355674,0.4457,4748.7,4747.8,3.583]
[1755963356550,0.4457,4748.7,4748.2,2.1060268]
[1755963356751,0.3141,4748.3,4748.0,2.10611351]
[1755963356937,0.3141,4748.3,4748.1,2.10609805]
[1755963357574,0.3141,4748.3,4748.2,2.10606124]
[1755963358280,0.4457,4748.7,4748.0,2.10612711]
[1755963358580,0.4457,4748.7,4748.2,2.1060215]
[1755963358778,0.4457,4748.7,4748.3,2.10601186]
[1755963359169,0.4457,4748.7,4748.2,2.10604989]
[1755963359481,0.4457,4748.7,4748.1,2.1061046]
[1755963359784,0.3141,4748.2,4748.1,2.1061046]
[1755963360385,0.4457,4748.7,4748.1,2.1061046]
[1755963362162,0.3141,4748.2,4747.8,3.583]
[1755963362360,1e-08,4748.8,4748.2,2.10603368]
[1755963362361,0.4457,4748.6,4748.2,2.10603368]
[1755963362563,0.4457,4748.5,4748.1,2.10609831]
[1755963362866,0.5513,4748.5,4748.1,2.10609831]
[1755963363073,0.4457,4748.4,4748.1,2.10609831]
[1755963363696,0.1056,4748.5,4747.8,3.6886]
[1755963363879,0.1056,4748.5,4747.8,4.47549572]
[1755963364479,0.1056,4748.5,4747.8,4.92849572]
[1755963364783,0.1056,4748.5,4748.4,2.10597253]
[1755963365554,1e-08,4748.8,4748.7,2.10583949]
[1755963365775,1e-08,4748.8,4748.7,6.83217378]
[1755963365979,1e-08,4748.8,4748.7,7.28517378]
[1755963366284,0.31410001,4748.8,4748.7,0.86333429]
[1755963366452,0.75980001,4748.8,4748.7,2.10583949]
[1755963366657,1e-08,4748.8,4748.7,2.10583949]
[1755963366854,0.31410001,4748.8,4748.6,2.10587748]
[1755963367160,0.31410001,4748.8,4748.2,1.619]
[1755963367161,0.4457,4748.7,4747.5,1.62]
[1755963367372,0.5513,4748.7,4748.3,2.10600587]
[1755963367585,0.3141,4748.4,4748.3,2.10600587]
[1755963368099,0.7598,4748.4,4748.1,2.1060707]
[1755963368299,0.7598,4748.4,4748.2,2.1060444]
[1755963368504,0.7598,4748.4,4747.8,0.021]
[1755963368505,0.4457,4748.3,4747.8,0.021]
[1755963368793,0.4197,4747.9,4747.8,0.021]
[1755963369186,0.8654,4747.9,4747.8,0.021]
[1755963374600,0.4457,4748.5,4747.8,2.42823867]
[1755963374801,0.1056,4748.1,4747.8,0.322]
[1755963375176,0.1056,4748.1,4747.9,2.10619225]
[1755963375377,0.1056,4748.1,4747.8,2.12722734]
[1755963376300,0.1056,4748.1,4748.0,2.40714995]
[1755963376799,0.1056,4748.1,4748.0,0.301]
[1755963377372,0.1056,4748.1,4747.8,2.12723028]
[1755963377778,0.1056,4748.1,4747.8,0.021]
[1755963378190,0.1056,4748.1,4747.8,2.12723698]
[1755963378392,0.1056,4748.1,4747.9,2.10618867]
[1755963379302,0.1056,4748.1,4748.0,2.10614995]
[1755963380082,0.1056,4748.1,4748.0,2.40044995]
[1755963380283,1e-08,4748.8,4748.5,2.10588884]
[1755963380284,0.1056,4748.7,4748.5,2.10588884]
[1755963380488,0.1056,4748.7,4748.6,2.40018383]
[1755963381593,1e-08,4748.8,4748.7,2.10583949]
[1755963381816,1e-08,4748.8,4748.7,2.65357602]
[1755963382116,1e-08,4748.8,4748.7,3.08627602]
[1755963382611,1e-08,4748.8,4748.7,2.65357602]
[1755963382912,1e-08,4748.8,4748.7,2.40013949]
[1755963388640,1e-08,4748.8,4748.7,2.10583949]
[1755963394258,0.76060001,4748.8,4748.2,5.66601739]
[1755963394413,0.4682,4748.7,4748.0,3.6646]
[1755963394852,0.4682,4748.7,4748.3,2.1060108]
[1755963395141,0.2924,4748.4,4748.3,2.1060108]
[1755963395533,0.7606,4748.4,4748.3,2.1060108]
[1755963397234,0.8662,4748.4,4748.1,2.10609767]
[1755963397435,0.4682,4748.3,4748.1,2.10609767]
[1755963397733,0.7606,4748.2,4748.1,2.10609767]
[1755963399134,0.2924,4748.2,4748.1,2.10609767]
[1755963399348,0.2924,4748.2,4748.0,2.10614171]
[1755963399946,0.4682,4748.1,4747.9,2.106182]
[1755963400119,0.7606,4748.0,4747.8,0.021]
[1755963400314,0.2924,4748.0,4747.8,0.021]
[1755963400627,0.4682,4747.9,4747.8,0.021]
[1755963400826,0.7606,4747.9,4747.8,0.021]
[1755963406764,0.1056,4748.1,4748.0,2.10614995]
[1755963406935,0.32953816,4748.5,4748.1,2.1060661]
[1755963407236,0.1056,4748.4,4748.1,2.10609326]
[1755963407431,0.1056,4748.4,4748.2,2.10605794]
[1755963407629,1.619,4748.9,4748.3,2.40031689]
[1755963407959,1.619,4748.9,4748.3,2.40028218]
[1755963407960,0.1056,4748.6,4748.3,2.40028218]
[1755963408460,0.1056,4748.6,4748.4,2.10596677]
[1755963409952,0.1056,4748.6,4748.3,2.10601346]
[1755963410450,0.002,4749.0,4748.7,2.10583949]
[1755963410649,0.002,4749.0,4748.7,2.52103949]
[1755963410852,0.002,4749.0,4748.7,5.96193949]
[1755963411765,1e-08,4749.0,4748.9,2.7657508]
[1755963412062,1e-08,4749.0,4748.9,11.2523508]
[1755963412432,1e-08,4749.0,4748.9,11.6932508]
[1755963412884,0.32942245,4751.0,4750.7,2.10495295]
[1755963413088,0.1056,4751.6,4750.7,6.28864825]
[1755963413284,0.1056,4751.6,4750.7,6.72954825]
[1755963414267,10.80305635,4752.2,4750.7,6.28864825]
[1755963414447,0.5589,4751.6,4750.7,6.28864825]
[1755963414670,0.5589,4751.6,4750.7,0.1056]
[1755963414671,0.3379,4750.8,4750.7,0.1056]
[1755963414867,0.3379,4750.8,4750.7,2.21055295]
[1755963415097,0.3379,4750.8,4750.7,2.10495295]
[1755963415274,0.022,4750.8,4750.7,2.10495295]
[1755963415562,0.7692,4750.8,4750.5,5.66203586]
[1755963415763,0.3159,4750.8,4750.5,3.557]
[1755963416194,0.3159,4750.8,4750.6,2.10499726]
[1755963416357,0.3159,4750.8,4750.7,2.10495295]
[1755963418091,0.7692,4750.8,4750.5,3.557]
[1755963418275,0.7692,4750.8,4750.7,2.10495295]
[1755963418679,0.3159,4750.8,4750.7,2.10495295]
[1755963419268,0.3159,4750.8,4750.6,2.10498886]
[1755963419465,0.7692,4750.8,4750.5,3.557]
[1755963419691,0.3159,4750.8,4750.4,0.1056]
[1755963419898,0.3159,4750.8,4750.7,2.10495295]
[1755963420365,0.3159,4750.8,4750.4,3.6616]
[1755963420565,0.3159,4750.8,4750.7,2.10495295]
[1755963420876,0.3159,4750.8,4750.5,2.10500286]
[1755963420877,0.4533,4750.7,4750.5,2.10500286]
[1755963421078,0.3159,4750.6,4750.4,3.6616]
[1755963421398,0.7692,4750.6,4750.4,5.66107742]
[1755963421571,0.7692,4750.6,4750.1,2.21079368]
[1755963421769,0.4533,4750.5,4750.4,2.10508588]
[1755963422004,0.3159,4750.5,4750.4,2.10508588]
[1755963422177,0.4215,4750.5,4750.4,2.10508588]
[1755963422372,0.1056,4751.1,4750.4,1.63272552]
[1755963422695,0.1056,4751.1,4751.0,2.10481756]
[1755963423072,0.1056,4751.1,4750.9,2.10485688]
[1755963423272,0.4215,4751.1,4750.7,2.10491568]
[1755963423691,0.4215,4751.1,4750.5,3.556]
[1755963424278,0.4215,4751.1,4750.9,2.10485408]
[1755963424590,0.4215,4751.1,4751.0,2.10482003]
[1755963424993,0.4215,4751.1,4750.9,2.10486256]
[1755963425300,0.4215,4751.1,4751.0,2.10482003]
[1755963425471,0.4215,4751.1,4750.9,2.10485329]
[1755963426497,0.1056,4751.1,4751.0,2.10482003]
[1755963426701,0.002,4751.3,4751.2,2.10473143]
[1755963426901,0.002,4751.3,4751.2,2.41433143]
[1755963428431,0.002,4751.3,4751.2,2.85523143]
[1755963428585,0.002,4751.3,4751.2,2.96083143]
[1755963428786,0.002,4751.3,4751.2,6.51583143]
[1755963429016,0.002,4751.3,4751.2,7.37789658]
[1755963430709,0.002,4751.3,4751.2,6.93699658]
[1755963431823,0.002,4751.3,4751.2,7.37789658]
[1755963432921,0.002,4751.3,4751.2,11.12222158]
[1755963433322,0.022,4751.8,4751.7,2.10450996]
[1755963433633,0.022,4751.8,4751.7,11.4136185]
[1755963433933,0.022,4751.8,4751.7,12.6221185]
[1755963434508,0.022,4751.8,4751.7,7.9672185]
[1755963434722,0.022,4751.8,4751.7,11.9621185]
[1755963434930,0.022,4751.8,4751.7,4.9672185]
[1755963435143,0.3379,4751.8,4751.7,5.173]
[1755963435306,0.7912,4751.8,4751.7,5.173]
[1755963435506,0.7912,4751.8,4751.2,2.10473143]
[1755963435823,0.7912,4751.8,4751.4,2.10459918]
[1755963436023,0.7912,4751.8,4751.5,3.554]
[1755963436222,0.4533,4751.7,4751.5,3.554]
[1755963436532,0.3159,4751.6,4751.2,0.41836314]
[1755963436706,0.3159,4751.6,4751.3,3.554]
[1755963436906,0.3159,4751.6,4751.5,2.10459854]
[1755963437311,0.7692,4751.6,4751.5,3.554]
[1755963437545,0.3159,4751.6,4751.5,5.65859854]
[1755963437729,0.3159,4751.6,4751.5,3.554]
[1755963438358,0.3159,4751.6,4751.5,5.65859854]
[1755963438637,0.022,4751.8,4751.7,2.10450996]
[1755963439445,0.022,4751.8,4751.7,6.7343232]
[1755963439664,0.022,4751.8,4751.7,7.1702232]
[1755963439939,0.022,4751.8,4751.7,1.07581324]
[1755963440116,0.022,4751.8,4751.7,5.65750996]
[1755963440450,0.022,4751.8,4751.0,2.0539]
[1755963440451,0.8075,4751.8,4751.1,2.10473317]
[1755963440628,0.8075,4751.8,4751.2,3.553]
[1755963440947,0.8075,4751.8,4751.3,2.10465229]
[1755963441147,0.8075,4751.8,4751.4,3.553]
[1755963441313,0.3369,4751.8,4751.4,5.65762858]
[1755963441509,0.4706,4751.7,4751.5,3.553]
[1755963441751,0.4706,4751.7,4751.6,2.10454277]
[1755963442239,0.4706,4751.7,4751.5,3.553]
[1755963442240,0.7855,4751.7,4751.5,3.553]
[1755963442736,0.3149,4751.7,4751.5,3.553]
[1755963442945,0.4706,4751.6,4751.5,3.553]
[1755963443245,0.7855,4751.6,4751.5,3.553]
[1755963444833,0.7855,4751.6,4751.0,1.618]
[1755963445039,0.4706,4751.5,4751.1,3.553]
[1755963445235,0.4706,4751.4,4751.1,3.553]
[1755963445544,0.4706,4751.7,4751.2,2.10469203]
[1755963445727,0.4706,4751.6,4751.2,2.10469203]
[1755963446043,0.1276,4751.8,4751.1,5.65776423]
[1755963446211,0.1276,4751.8,4751.1,4.24522763]
[1755963446419,0.022,4751.8,4751.7,2.40400996]
[1755963446742,0.022,4751.8,4751.7,2.50960996]
[1755963447240,0.022,4751.8,4751.7,2.94550996]
[1755963449033,0.022,4751.8,4751.7,2.50960996]
[1755963449233,0.022,4751.8,4751.7,6.53246101]
[1755963449752,3.0,4751.7,4750.4,0.001]
[1755963450047,0.3149,4751.0,4750.4,0.001]
[1755963450274,0.022,4751.8,4750.9,2.84124]
[1755963450422,0.022,4751.8,4750.9,0.3005]
[1755963450622,0.022,4751.8,4750.9,0.384829]
[1755963450823,0.022,4751.8,4751.7,2.10450996]
[1755963451035,0.022,4751.8,4751.7,2.40400996]
[1755963452828,0.8075,4751.8,4751.5,2.10459854]
[1755963453029,0.8075,4751.8,4751.3,3.587]
[1755963453226,0.022,4751.8,4751.7,2.10450996]
[1755963454169,0.022,4751.8,4751.6,2.10454949]
[1755963454369,0.3149,4751.7,4751.4,0.43560825]
[1755963454574,0.7855,4751.7,4751.4,0.43560825]
[1755963454727,0.4706,4751.6,4751.4,2.54024449]
[1755963455055,0.022,4751.8,4751.5,1.12270135]
[1755963455245,0.022,4751.8,4751.7,2.10450996]
[1755963456650,0.022,4751.8,4751.7,2.40400996]
[1755963457052,0.022,4751.8,4751.7,2.83990996]
[1755963457830,0.002,4752.3,4751.8,2.76446567]
[1755963458156,0.002,4752.3,4751.8,8.23938101]
[1755963458669,0.002,4752.3,4751.8,7.57938101]
[1755963459461,0.002,4752.3,4751.8,3.84398101]
[1755963459660,0.002,4752.3,4751.8,3.94958101]
[1755963459842,0.002,4752.3,4751.8,4.24908101]
[1755963460837,0.002,4752.3,4751.8,4.68498101]
[1755963461380,0.002,4752.3,4751.8,4.24908101]
[1755963461730,0.002,4752.3,4751.8,7.83408101]
[1755963461962,0.002,4752.3,4751.8,8.26998101]
[1755963462790,0.002,4752.3,4751.8,11.26998101]
[1755963463290,0.002,4752.3,4751.8,11.92998101]
[1755963464352,0.002,4752.3,4751.8,11.94998101]
[1755963466391,0.002,4752.3,4751.8,11.51408101]
[1755963466592,0.002,4752.3,4751.8,11.94998101]
[1755963468061,0.002,4752.3,4751.8,12.03429001]
[1755963469481,0.002,4752.3,4751.8,12.01429001]
[1755963472897,0.3016,4751.9,4751.8,10.61089001]
[1755963473067,0.3016,4751.9,4751.8,10.52658101]
[1755963473269,0.7397,4751.9,4751.8,10.52658101]
[1755963473498,0.7397,4751.9,4751.8,7.52658101]
[1755963473801,0.002,4751.9,4751.8,8.49688101]
[1755963474094,0.002,4751.9,4751.8,11.94738101]
[1755963474597,0.002,4751.9,4751.8,12.03169101]
[1755963477276,1e-08,4751.9,4751.8,12.03169101]
[1755963477723,1e-08,4752.8,4752.1,0.66]
[1755963477881,1e-08,4752.8,4752.7,6.07436716]
[1755963478069,1e-08,4752.9,4752.8,5.76402289]
[1755963478268,1e-08,4752.9,4752.8,6.52482289]
[1755963479897,1e-08,4752.9,4752.8,6.96292289]
[1755963480102,1e-08,4752.9,4752.8,9.10480089]
[1755963480406,1e-08,4752.9,4752.8,9.21040089]
[1755963481208,1e-08,4752.9,4752.8,9.10480089]
[1755963481523,1e-08,4752.9,4752.8,11.43240089]
[1755963481671,1e-08,4752.9,4752.8,12.33990089]
[1755963482094,1e-08,4752.9,4752.8,12.68480089]
[1755963482884,1e-08,4752.9,4752.8,12.23430089]
[1755963483095,1e-08,4752.9,4752.8,11.92600089]
[1755963483300,1e-08,4752.9,4752.8,11.26600089]
[1755963483301,0.29960001,4752.9,4752.8,11.26600089]
[1755963483471,0.73770001,4752.9,4752.8,11.26600089]
[1755963483677,0.73770001,4752.9,4752.8,11.28600089]
[1755963483875,0.29960001,4752.9,4752.8,11.28600089]
[1755963484107,0.73770001,4752.9,4752.8,7.70400089]
[1755963484304,1e-08,4752.9,4752.8,11.28600089]
[1755963484707,1e-08,4752.9,4752.8,12.25630089]
[1755963484876,1e-08,4752.9,4752.8,12.70680089]
[1755963485775,1e-08,4752.9,4752.8,12.26030089]
[1755963486794,1e-08,4752.9,4752.8,12.28030089]
[1755963487010,1e-08,4752.9,4752.8,12.73080089]
[1755963488178,1e-08,4752.9,4752.8,12.28030089]
[1755963488375,0.29960001,4752.9,4752.8,11.96900089]
[1755963488574,0.29960001,4752.9,4752.8,11.30900089]
[1755963488818,0.73770001,4752.9,4752.8,11.30900089]
[1755963489001,0.29960001,4752.9,4752.8,11.30900089]
[1755963489384,0.73770001,4752.9,4752.8,11.30900089]
[1755963489677,0.73770001,4752.9,4752.8,11.28900089]
[1755963491022,1e-08,4752.9,4752.8,11.59930089]
[1755963491682,1e-08,4752.9,4752.8,12.25930089]
[1755963491889,1e-08,4752.9,4752.8,12.23930089]
[1755963492219,1e-08,4752.9,4752.8,12.79540089]
[1755963492595,1e-08,4752.9,4752.8,12.34490089]
[1755963494220,1e-08,4752.9,4752.8,12.79540089]
[1755963494620,1e-08,4752.9,4752.8,12.34490089]
[1755963495805,0.29960001,4752.9,4752.8,12.03460089]
[1755963496009,1e-08,4752.9,4752.8,12.03460089]